bitfinex-derivatives/quotes_SOLF0:USTF0_20250518
["timestamp","ask_amount","ask_price","bid_price","bid_amount"]
[1747576153949,61.1,172.23,172.15,5.8067]
[1747576154143,61.1,172.23,172.14,5.8072]
[1747576154645,5.8063,172.17,172.14,5.8072]
[1747576155455,5.8062,172.18,172.15,5.807]
[1747576155650,68.7778502,172.23,172.13,66.48820706]
[1747576156054,5.807,172.16,172.15,4.87030902]
[1747576156957,5.8064,172.17,172.15,4.87030902]
[1747576157254,61.08,172.18,172.11,225.69948533]
[1747576157756,5.8066,172.16,172.13,5.8074]
[1747576158257,61.08,172.18,172.11,225.69948533]
[1747576158558,61.08,172.18,172.12,5.8079]
[1747576159058,5.8068,172.16,172.13,5.8076]
[1747576159258,5.8068,172.16,172.14,4.86842671]
[1747576161657,5.8068,172.16,172.13,5.8076]
[1747576162259,5.8071,172.15,172.12,5.8079]
[1747576163062,5.8071,172.15,172.13,4.86293717]
[1747576163461,5.8073,172.14,172.13,4.86293717]
[1747576165073,5.8073,172.14,172.11,226.15957827]
[1747576165975,5.8078,172.13,172.11,220.35127827]
[1747576166180,61.08,172.18,172.11,220.35127827]
[1747576167076,5.8077,172.13,172.11,220.35127827]
[1747576167576,5.8074,172.14,172.11,5.8083]
[1747576169178,61.08,172.18,172.12,5.808]
[1747576169476,61.08,172.18,172.1,61.14]
[1747576170078,5.8072,172.15,172.12,5.8079]
[1747576170381,61.08,172.18,172.12,5.8079]
[1747576170678,61.08,172.18,172.11,5.8081]
[1747576170880,61.08,172.18,172.1,61.14]
[1747576171186,61.08,172.18,172.11,4.85679278]
[1747576172082,61.08,172.18,172.1,61.14]
[1747576172379,61.06,172.17,172.1,61.14]
[1747576173083,5.8072,172.15,172.12,5.8077]
[1747576173283,61.06,172.17,172.1,61.14]
[1747576173680,5.808,172.12,172.07,66.42820706]
[1747576174082,61.08,172.16,172.07,11.15760706]
[1747576174274,61.08,172.16,172.07,5.34820706]
[1747576174687,5.8082,172.12,172.08,5.8091]
[1747576175286,5.8082,172.12,172.09,5.809]
[1747576175587,5.8082,172.12,172.07,5.34820706]
[1747576175986,5.8082,172.12,172.09,5.809]
[1747576176190,5.8084,172.11,172.07,5.34820706]
[1747576176683,61.04,172.13,172.07,5.34820706]
[1747576177081,61.1,172.12,172.07,5.34820706]
[1747576177881,5.8091,172.09,172.07,5.34820706]
[1747576178580,5.8091,172.09,172.05,5.8101]
[1747576178784,66.8491,172.09,172.05,5.8101]
[1747576179181,5.8094,172.08,172.05,5.8101]
[1747576179383,61.04,172.09,172.06,5.81]
[1747576179786,61.04,172.09,172.03,4.84592497]
[1747576180693,61.04,172.09,172.03,10.65662497]
[1747576180694,5.8099,172.07,172.03,10.65662497]
[1747576180990,5.8099,172.07,172.03,5.8107]
[1747576181381,61.04,172.09,172.03,5.8107]
[1747576181788,5.8099,172.07,172.03,5.8107]
[1747576181988,61.04,172.09,172.03,5.8107]
[1747576182390,5.8099,172.07,172.03,5.8107]
[1747576182590,61.04,172.09,172.03,5.8107]
[1747576182888,5.81,172.07,172.03,5.8107]
[1747576183092,5.81,172.07,172.04,5.8106]
[1747576183393,5.81,172.07,172.01,1.9446]
[1747576183593,5.81,172.07,172.03,5.8108]
[1747576183794,61.04,172.09,172.03,5.8108]
[1747576184295,5.8104,172.05,172.02,5.8113]
[1747576184499,5.8104,172.05,172.01,1.9446]
[1747576185391,5.8104,172.05,172.02,5.8111]
[1747576185598,61.04,172.09,172.02,5.8111]
[1747576185998,5.8102,172.06,172.02,5.8111]
[1747576186397,5.8102,172.06,172.03,5.811]
[1747576186595,5.8104,172.05,172.01,1.9446]
[1747576186793,5.8104,172.05,172.02,5.8111]
[1747576187296,5.8101,172.06,172.03,5.8109]
[1747576187894,5.8098,172.07,172.03,5.8109]
[1747576189296,5.8101,172.06,172.03,5.8109]
[1747576189496,61.04,172.09,172.04,5.8107]
[1747576190198,5.8099,172.07,172.04,5.8107]
[1747576190496,61.04,172.09,172.01,1.9446]
[1747576190897,5.8099,172.07,172.04,5.8106]
[1747576191092,61.04,172.09,171.99,64.8828]
[1747576191497,5.8102,172.06,172.02,5.8114]
[1747576191797,61.04,172.09,172.02,5.8114]
[1747576192294,61.04,172.09,171.99,64.8828]
[1747576192800,5.8099,172.07,171.99,64.8828]
[1747576193098,62.9592,172.12,171.99,72.5606502]
[1747576193296,61.02,172.11,171.99,72.5606502]
[1747576193500,5.8096,172.08,171.99,72.5606502]
[1747576193792,61.02,172.11,171.99,72.5606502]
[1747576193998,5.8091,172.09,172.05,5.8101]
[1747576194300,5.8091,172.09,172.03,61.02]
[1747576194895,5.8087,172.11,172.03,61.02]
[1747576195101,61.1,172.12,172.03,62.9058]
[1747576195295,61.0,172.13,172.03,62.9058]
[1747576195601,5.8084,172.11,172.07,5.8094]
[1747576195802,5.8084,172.11,172.03,62.9058]
[1747576196803,5.8084,172.11,172.07,5.8094]
[1747576196996,5.8078,172.13,172.05,7.6778502]
[1747576197201,61.0,172.15,172.06,125.8043]
[1747576197400,61.0,172.15,172.11,5.8082]
[1747576197699,61.02,172.16,172.11,5.8082]
[1747576197902,5.8071,172.15,172.11,5.8082]
[1747576198100,122.02,172.16,172.11,5.8082]
[1747576199602,5.8073,172.14,172.11,5.8082]
[1747576200200,5.8072,172.15,172.11,5.8082]
[1747576200601,214.52489688,172.19,172.1,61.02]
[1747576200800,220.33079688,172.19,172.1,122.0]
[1747576201005,153.50489688,172.19,172.1,122.0]
[1747576201310,153.50489688,172.19,172.15,5.8067]
[1747576201497,60.98,172.21,172.1,122.0]
[1747576201701,122.0,172.22,172.11,7.6778502]
[1747576202094,5.8059,172.19,172.12,1.905]
[1747576202609,5.8059,172.19,172.12,3.7577]
[1747576202909,5.8059,172.19,172.15,5.8068]
[1747576204007,5.8054,172.2,172.16,5.8066]
[1747576204406,122.0,172.22,172.14,61.0]
[1747576204605,5.8059,172.19,172.15,5.8069]
[1747576204908,122.0,172.22,172.14,61.0]
[1747576206111,5.8062,172.18,172.14,66.8071]
[1747576207110,5.8064,172.17,172.14,66.8071]
[1747576207324,122.0,172.22,172.14,61.0]
[1747576207610,122.0,172.22,172.12,3.7577]
[1747576208006,122.0,172.22,172.12,9.5655]
[1747576208307,5.8069,172.16,172.12,5.8078]
[1747576208503,122.0,172.22,172.11,66.8082]
[1747576208703,7.6778502,172.21,172.11,61.0]
[1747576209512,5.8079,172.13,172.08,5.37653316]
[1747576209716,5.8079,172.13,172.09,61.0]
[1747576210008,60.94,172.17,172.08,5.37653316]
[1747576210216,3.8857,172.16,172.08,5.37653316]
[1747576210910,3.8857,172.16,172.06,61.0]
[1747576211110,5.8085,172.11,172.07,5.8096]
[1747576212912,5.8081,172.12,172.08,5.8093]
[1747576214111,5.8084,172.11,172.07,5.8096]
[1747576214300,3.8857,172.16,172.07,5.8096]
[1747576215012,5.8088,172.1,172.07,5.8096]
[1747576215412,60.92,172.13,172.07,5.8096]
[1747576215606,5.8085,172.11,172.07,5.8096]
[1747576216618,5.8088,172.1,172.07,5.8096]
[1747576217119,5.8088,172.1,172.06,66.8099]
[1747576217320,60.92,172.13,172.06,61.0]
[1747576217820,5.8084,172.11,172.07,5.8097]
[1747576218113,5.8084,172.11,172.06,61.0]
[1747576218711,5.8084,172.11,172.07,5.8096]
[1747576219319,5.8087,172.1,172.07,5.8096]
[1747576221025,5.8084,172.11,172.07,5.8096]
[1747576221620,5.8084,172.11,172.08,5.8093]
[1747576225128,3.8857,172.16,172.06,61.0]
[1747576225318,61.0,172.18,172.06,61.0]
[1747576225625,5.7877,172.22,172.08,7.6778502]
[1747576225926,5.7877,172.22,172.09,64.5925]
[1747576226221,5.7877,172.22,172.1,65.74586623]
[1747576226524,5.806,172.18,172.15,5.8069]
[1747576227320,5.7877,172.22,172.1,65.74586623]
[1747576228023,60.9,172.21,172.11,4.84586623]
[1747576228428,5.8072,172.15,172.11,10.65406623]
[1747576229223,5.8072,172.15,172.11,5.8082]
[1747576230128,5.8072,172.15,172.12,5.808]
[1747576230322,5.8068,172.16,172.12,5.808]
[1747576230621,60.88,172.18,172.1,60.9]
[1747576230830,60.88,172.18,172.13,5.8074]
[1747576231130,5.8069,172.16,172.1,60.9]
[1747576231428,5.8069,172.16,172.12,5.8079]
[1747576232228,5.807,172.15,172.12,5.8079]
[1747576233519,60.88,172.18,172.1,60.9]
[1747576233919,60.9,172.17,172.07,68.26983316]
[1747576234125,5.8085,172.11,172.08,5.8092]
[1747576234326,60.86,172.14,172.07,66.27653316]
[1747576234634,60.86,172.14,172.07,72.08593316]
[1747576235430,5.8089,172.1,172.07,66.27653316]
[1747576236336,60.86,172.14,172.07,5.37653316]
[1747576236638,60.9,172.13,172.07,5.37653316]
[1747576237023,5.8093,172.08,172.07,5.37653316]
[1747576237833,5.8098,172.07,172.04,5.8107]
[1747576238940,60.86,172.1,172.02,60.9]
[1747576239428,5.8103,172.06,172.03,4.85620167]
[1747576240139,5.8098,172.07,172.03,4.85620167]
[1747576240831,5.8098,172.07,172.02,60.9]
[1747576241230,5.8098,172.07,172.03,5.8109]
[1747576241439,5.81,172.06,172.03,5.8109]
[1747576241741,5.81,172.06,172.02,66.7112]
[1747576241932,5.8106,172.05,172.02,60.9]
[1747576242535,5.8106,172.05,172.0,70.16993316]
[1747576243439,5.8106,172.05,172.01,5.8116]
[1747576243940,5.8106,172.05,172.01,10.66343416]
[1747576245073,5.8107,172.04,172.01,10.66343416]
[1747576245259,5.8107,172.04,172.02,4.85183416]
[1747576245767,5.811,172.03,172.02,4.85183416]
[1747576246256,5.812,172.0,171.99,5.37653316]
[1747576246446,60.92,172.04,171.99,5.37653316]
[1747576246447,60.84,172.02,171.99,5.37653316]
[1747576246937,60.92,172.04,171.99,5.37653316]
[1747576247143,60.92,172.04,171.97,220.53506101]
[1747576247339,60.84,172.05,171.97,220.53506101]
[1747576247537,66.6504,172.05,172.01,5.8115]
[1747576248138,5.8107,172.04,172.01,5.8115]
[1747576248333,60.84,172.05,172.0,5.8119]
[1747576248538,60.84,172.05,171.97,224.28556101]
[1747576248944,5.8111,172.03,172.0,5.812]
[1747576249943,5.8115,172.02,171.99,5.8122]
[1747576250244,60.84,172.05,171.97,220.53506101]
[1747576250543,60.84,172.05,171.98,5.8126]
[1747576250544,5.8119,172.01,171.98,5.8126]
[1747576251335,60.84,172.05,171.97,226.34806101]
[1747576251541,60.84,172.05,171.97,220.53506101]
[1747576252143,68.5178502,172.05,171.97,220.53506101]
[1747576252337,68.5178502,172.05,171.93,7.20633316]
[1747576252537,1.8398,172.04,171.93,7.20633316]
[1747576252738,60.84,172.03,171.93,7.20633316]
[1747576253232,5.8131,171.97,171.93,13.02063316]
[1747576253432,60.84,171.99,171.93,1.8298]
[1747576253641,60.84,172.0,171.92,9.5165]
[1747576254946,5.8136,171.96,171.92,9.5165]
[1747576255139,60.84,172.0,171.92,3.7021]
[1747576255443,60.84,172.0,171.92,1.8259]
[1747576255847,5.814,171.95,171.92,1.8259]
[1747576256535,5.8143,171.94,171.92,1.8259]
[1747576256934,60.84,171.99,171.92,1.8259]
[1747576257141,5.8133,171.97,171.93,5.8141]
[1747576259136,1.8398,172.04,171.92,70.3437502]
[1747576259341,62.6798,172.04,171.94,60.86]
[1747576259543,5.8121,172.0,171.96,5.8134]
[1747576259747,62.6798,172.04,171.94,60.86]
[1747576259940,70.3576502,172.04,171.94,60.86]
[1747576261033,5.8128,171.98,171.94,66.674]
[1747576262345,60.84,172.0,171.92,1.8259]
[1747576262642,60.84,172.0,171.91,60.86]
[1747576263647,5.8131,171.97,171.93,5.8143]
[1747576264144,5.8128,171.98,171.94,5.814]
[1747576264345,60.84,172.0,171.91,60.86]
[1747576264644,60.82,172.02,171.92,60.82]
[1747576264844,60.82,172.02,171.95,5.8137]
[1747576265344,60.82,172.02,171.93,3.795]
[1747576265539,60.82,172.02,171.94,5.8139]
[1747576265737,60.82,172.02,171.93,3.795]
[1747576266044,5.8125,171.99,171.95,5.8135]
[1747576266442,60.82,172.02,171.95,5.8135]
[1747576266745,5.8127,171.98,171.94,5.814]
[1747576267046,60.82,172.02,171.93,3.795]
[1747576267239,60.82,172.02,171.93,7.7899]
[1747576267746,5.8132,171.97,171.93,7.7899]
[1747576268544,7.6778502,172.01,171.91,5.8148]
[1747576269146,7.6778502,172.01,171.9,66.6753]
[1747576269539,7.6778502,172.01,171.9,60.86]
[1747576269743,7.6778502,172.01,171.91,5.815]
[1747576270238,5.8141,171.94,171.9,66.6753]
[1747576270446,5.8141,171.94,171.9,60.86]
[1747576271440,60.82,171.97,171.91,5.8148]
[1747576271646,60.82,171.97,171.9,60.86]
[1747576271647,60.86,171.98,171.9,60.86]
[1747576271847,60.82,171.99,171.91,60.82]
[1747576272045,60.82,171.99,171.95,5.8135]
[1747576272641,66.6325,171.99,171.95,5.8135]
[1747576273050,7.6778502,172.07,171.95,60.86]
[1747576273349,5.8118,172.01,171.95,60.86]
[1747576273758,5.8118,172.01,171.98,5.8126]
[1747576274040,5.8118,172.01,171.95,60.86]
[1747576274244,60.8,172.03,171.95,60.86]
[1747576274835,60.8,172.03,171.95,66.6736]
[1747576275044,60.8,172.03,171.95,60.86]
[1747576275346,5.8127,171.98,171.95,66.6737]
[1747576275546,5.8127,171.98,171.95,5.8137]
[1747576277046,5.8124,171.99,171.96,5.8134]
[1747576277743,7.6778502,172.07,171.97,5.813]
[1747576277744,5.8121,172.0,171.97,5.813]
[1747576277944,60.8,172.03,171.92,131.3473502]
[1747576278147,5.8123,172.0,171.96,5.8131]
[1747576278348,5.8123,172.0,171.92,131.3473502]
[1747576278850,5.8123,172.0,171.96,5.8132]
[1747576280252,60.8,172.03,171.93,4.84312295]
[1747576280649,64.5826,172.03,171.93,4.84312295]
[1747576281151,64.5826,172.03,171.92,62.8695]
[1747576281549,64.5826,172.03,171.93,5.8144]
[1747576281953,5.8134,171.96,171.93,5.8144]
[1747576282756,60.78,171.99,171.94,5.8141]
[1747576282950,60.78,171.99,171.92,62.8695]
[1747576283356,5.8131,171.97,171.94,5.8138]
[1747576285245,5.8128,171.98,171.94,5.8138]
[1747576286751,5.8131,171.97,171.94,5.8138]
[1747576287054,60.78,171.99,171.93,5.8143]
[1747576288057,60.78,171.99,171.94,5.8141]
[1747576288260,60.78,171.99,171.92,62.8695]
[1747576288556,5.8129,171.98,171.94,5.8139]
[1747576289149,60.78,171.99,171.94,5.8139]
[1747576289458,5.8128,171.98,171.94,5.8139]
[1747576290165,5.8128,171.98,171.95,5.8137]
[1747576290663,5.8131,171.97,171.96,4.86148719]
[1747576290962,60.78,171.99,171.96,4.86148719]
[1747576291755,5.8129,171.98,171.96,4.86148719]
[1747576291950,60.78,171.99,171.96,4.86148719]
[1747576292362,5.8131,171.97,171.96,4.86148719]
[1747576292555,60.78,171.99,171.92,68.25187983]
[1747576292957,60.78,171.99,171.93,5.8143]
[1747576293559,5.8135,171.96,171.94,4.86968328]
[1747576294266,5.8132,171.97,171.94,10.68368328]
[1747576294467,5.8132,171.97,171.94,4.86968328]
[1747576294760,5.8134,171.96,171.94,4.86968328]
[1747576294967,60.78,171.99,171.94,4.86968328]
[1747576295360,5.8133,171.97,171.95,4.86968328]
[1747576296472,5.8134,171.96,171.95,4.86968328]
[1747576301671,5.8139,171.95,171.92,5.8145]
[1747576302374,5.8139,171.95,171.93,5.8144]
[1747576302582,5.8139,171.95,171.9,5.38237983]
[1747576302772,5.8135,171.96,171.9,5.38237983]
[1747576303277,5.8135,171.96,171.93,5.8144]
[1747576303574,60.78,171.99,171.91,4.87385058]
[1747576304177,5.8132,171.97,171.92,5.8146]
[1747576304381,60.78,171.99,171.92,5.8146]
[1747576304582,60.78,171.99,171.91,4.87385058]
[1747576304879,5.8128,171.98,171.91,4.87385058]
[1747576305082,60.78,171.99,171.91,4.87385058]
[1747576305581,60.78,171.99,171.92,4.87385058]
[1747576306183,5.8138,171.95,171.92,10.68835058]
[1747576306584,5.8138,171.95,171.93,4.87385058]
[1747576306784,5.8135,171.96,171.93,10.68825058]
[1747576307284,5.8137,171.95,171.93,10.68825058]
[1747576307484,60.78,171.99,171.93,4.87385058]
[1747576307986,5.8133,171.97,171.93,4.87385058]
[1747576308185,5.8133,171.97,171.94,10.68785058]
[1747576308981,5.8134,171.96,171.94,10.68785058]
[1747576309185,5.8134,171.96,171.95,4.87385058]
[1747576311085,5.8134,171.96,171.93,5.8144]
[1747576311789,5.8132,171.97,171.93,5.8144]
[1747576311988,5.8132,171.97,171.94,5.8139]
[1747576312685,5.8132,171.97,171.93,5.8143]
[1747576312988,5.8134,171.96,171.9,60.78]
[1747576313489,60.72,171.99,171.92,5.8145]
[1747576313992,5.8136,171.96,171.92,5.8145]
[1747576314191,60.72,171.99,171.9,60.78]
[1747576314483,5.8131,171.97,171.93,4.87342904]
[1747576314690,5.8131,171.97,171.93,10.68762904]
[1747576315789,5.8131,171.97,171.94,10.68742904]
[1747576316190,5.8128,171.98,171.95,5.8135]
[1747576316887,66.398,172.03,171.94,4.87342904]
[1747576317193,60.7,172.02,171.94,4.87342904]
[1747576317388,60.7,172.02,171.95,5.8137]
[1747576317586,60.7,172.02,171.94,4.87342904]
[1747576318294,60.7,172.02,171.96,4.87342904]
[1747576318590,5.8131,171.97,171.96,4.87342904]
[1747576319292,5.8136,171.96,171.93,5.38237983]
[1747576319690,60.68,171.98,171.93,5.38237983]
[1747576319883,5.814,171.95,171.93,5.38237983]
[1747576320192,60.68,171.98,171.93,5.38237983]
[1747576320393,5.8135,171.96,171.93,5.38237983]
[1747576320592,60.68,171.98,171.94,4.87560962]
[1747576320790,60.68,171.98,171.94,10.68960962]
[1747576321095,66.4928,171.98,171.94,10.68960962]
[1747576321288,66.4928,171.98,171.95,5.8137]
[1747576321692,60.68,171.98,171.96,4.87560962]
[1747576321892,5.8125,171.99,171.96,4.87560962]
[1747576322696,5.8125,171.99,171.96,10.68900962]
[1747576322992,121.38,172.01,171.97,4.87560962]
[1747576323397,5.8126,171.99,171.97,4.87560962]
[1747576324595,5.8122,172.0,171.98,4.87560962]
[1747576325194,5.8124,171.99,171.98,4.87560962]
[1747576326796,5.8124,171.99,171.95,5.8136]
[1747576327297,5.8124,171.99,171.96,5.8133]
[1747576328589,5.8124,171.99,171.97,4.87506304]
[1747576329100,60.7,172.01,171.97,4.87506304]
[1747576329700,5.8126,171.99,171.97,4.87506304]
[1747576330201,5.8127,171.98,171.97,4.87506304]
[1747576330497,5.8127,171.98,171.94,66.5139]
[1747576330697,5.8127,171.98,171.95,5.8137]
[1747576332404,5.8127,171.98,171.96,4.87484647]
[1747576333804,5.8125,171.99,171.96,4.87484647]
[1747576334006,60.7,172.01,171.96,4.87484647]
[1747576334207,5.8129,171.98,171.97,4.87484647]
[1747576335605,5.8125,171.99,171.97,4.87484647]
[1747576337422,121.32,172.04,171.97,4.87484647]
[1747576337834,5.8111,172.03,171.99,5.8121]
[1747576339025,5.8114,172.02,171.99,5.8121]
[1747576339224,121.32,172.04,171.98,4.87484647]
[1747576339723,5.8122,172.0,171.98,4.87484647]
[1747576339919,5.8122,172.0,171.99,4.87484647]
[1747576341109,60.6,172.02,171.99,4.87484647]
[1747576341512,5.8117,172.01,171.99,4.87484647]
[1747576341814,60.6,172.02,171.99,4.87484647]
[1747576342008,60.6,172.02,172.0,4.87484647]
[1747576342206,5.8117,172.01,172.0,4.87484647]
[1747576343713,5.8124,171.99,171.96,11.19577983]
[1747576344114,60.6,172.02,171.96,11.19577983]
[1747576344315,5.8121,172.0,171.97,5.813]
[1747576345619,5.8125,171.99,171.96,11.19567983]
[1747576345818,60.6,172.02,171.96,11.19567983]
[1747576346021,60.6,172.02,171.96,5.38237983]
[1747576346214,60.6,172.02,171.98,4.86749976]
[1747576347112,60.68,172.06,171.98,4.86749976]
[1747576347312,121.26,172.06,171.98,4.86749976]
[1747576347519,60.58,172.06,171.98,6.75449976]
[1747576347821,5.8106,172.05,171.98,6.75449976]
[1747576348019,5.8106,172.05,171.99,4.86749976]
[1747576348318,5.8106,172.05,172.01,5.8114]
[1747576349809,5.8106,172.05,172.02,5.8113]
[1747576350215,62.5685,172.08,172.02,10.67879976]
[1747576350216,5.8101,172.06,172.02,10.67879976]
[1747576350722,60.58,172.08,172.03,5.8109]
[1747576351222,5.8103,172.06,172.02,10.67869976]
[1747576351617,60.58,172.08,172.02,4.86749976]
[1747576351817,5.8107,172.05,172.03,4.86749976]
[1747576354220,5.8107,172.05,172.02,5.8113]
[1747576354622,60.58,172.08,171.98,7.26937983]
[1747576355228,5.8102,172.06,172.02,5.8112]
[1747576355437,60.58,172.08,172.02,5.8112]
[1747576355823,214.19901073,172.09,172.02,5.8112]
[1747576356028,60.54,172.08,172.02,5.8112]
[1747576356563,5.8103,172.06,172.03,5.8109]
[1747576357847,62.5969,172.12,172.01,60.58]
[1747576358142,60.54,172.11,172.02,1.898]
[1747576358856,68.2178502,172.11,172.03,4.84985313]
[1747576359039,5.8106,172.05,172.03,4.84985313]
[1747576359432,60.54,172.07,172.03,4.84985313]
[1747576360930,60.54,172.07,172.0,60.58]
[1747576361231,5.8096,172.08,172.0,60.58]
[1747576361435,60.52,172.09,172.0,60.58]
[1747576362034,60.52,172.09,172.01,4.84904455]
[1747576362235,5.8097,172.07,172.03,5.8109]
[1747576362734,5.8097,172.07,172.04,5.8107]
[1747576363334,5.8095,172.08,172.04,5.8107]
[1747576363533,60.52,172.09,172.04,5.8107]
[1747576364031,60.52,172.09,172.02,5.8113]
[1747576365033,60.52,172.09,172.03,5.8108]
[1747576365335,5.8099,172.07,172.0,60.58]
[1747576365543,5.8099,172.07,172.03,5.8108]
[1747576366035,5.8099,172.07,172.0,60.58]
[1747576366428,5.8095,172.08,172.0,60.58]
[1747576366832,5.8095,172.08,172.05,5.8103]
[1747576367131,5.8091,172.09,172.05,5.8103]
[1747576367538,5.8094,172.08,172.05,5.8103]
[1747576367744,5.8094,172.08,172.04,5.8106]
[1747576367944,60.5,172.11,172.04,5.8106]
[1747576369145,60.5,172.11,172.05,5.8103]
[1747576369445,5.8094,172.08,172.05,5.8103]
[1747576369944,5.8094,172.08,172.04,5.8106]
[1747576371046,60.5,172.11,172.03,4.84520879]
[1747576371242,60.48,172.1,172.03,4.84520879]
[1747576371744,60.48,172.1,172.02,5.8113]
[1747576372249,5.8103,172.06,172.02,5.8113]
[1747576372446,60.48,172.1,172.02,5.8113]
[1747576373248,5.8104,172.05,172.02,5.8113]
[1747576373648,60.48,172.1,172.02,5.8113]
[1747576373950,5.8103,172.06,172.02,5.8113]
[1747576374947,5.8103,172.06,172.03,4.84379196]
[1747576375246,5.8099,172.07,172.03,4.84379196]
[1747576375843,5.8095,172.08,172.03,4.84379196]
[1747576376148,5.8095,172.08,172.04,4.84379196]
[1747576376648,5.8095,172.08,172.05,5.8102]
[1747576377646,5.8095,172.08,172.04,10.65439196]
[1747576377952,5.8097,172.07,172.04,10.65439196]
[1747576378351,5.8097,172.07,172.04,5.8106]
[1747576379352,5.8097,172.07,172.05,4.84644477]
[1747576379747,5.8095,172.08,172.05,4.84644477]
[1747576380154,60.46,172.11,172.05,4.84644477]
[1747576380947,60.46,172.11,172.05,10.65664477]
[1747576381449,60.46,172.11,172.01,7.23867983]
[1747576381650,5.8093,172.09,172.06,5.8098]
[1747576381848,62.2974,172.13,172.05,60.46]
[1747576382044,1.9725,172.16,172.05,68.1378502]
[1747576382249,5.8079,172.13,172.09,5.8088]
[1747576382449,5.8079,172.13,172.07,60.44]
[1747576382848,5.8079,172.13,172.1,5.8086]
[1747576383541,5.8079,172.13,172.09,5.8089]
[1747576385059,5.8079,172.13,172.1,4.84877227]
[1747576386155,5.8079,172.13,172.09,5.8089]
[1747576387152,60.44,172.16,172.07,60.44]
[1747576387357,60.44,172.16,172.07,62.4501]
[1747576387655,120.88,172.18,172.07,62.4501]
[1747576387956,60.46,172.18,172.07,62.4501]
[1747576388355,5.8072,172.15,172.11,5.8081]
[1747576388556,120.86,172.18,172.1,60.44]
[1747576388955,120.86,172.18,172.1,66.2485]
[1747576389261,120.86,172.18,172.1,60.44]
[1747576389759,120.86,172.18,172.11,5.8081]
[1747576390656,5.8072,172.15,172.11,5.8081]
[1747576390855,5.8072,172.15,172.12,5.8079]
[1747576391459,5.8072,172.15,172.11,5.8082]
[1747576392259,5.8072,172.15,172.12,5.808]
[1747576393158,5.8072,172.15,172.11,5.8082]
[1747576393854,5.8072,172.15,172.1,60.44]
[1747576393855,5.8072,172.15,172.12,5.8079]
[1747576394055,5.8068,172.16,172.12,5.8079]
[1747576394263,5.8068,172.16,172.1,60.44]
[1747576395564,5.8068,172.16,172.12,5.8077]
[1747576397361,5.7762,172.2,172.11,4.84051829]
[1747576397563,64.143,172.2,172.1,60.44]
[1747576397763,60.44,172.21,172.11,60.36]
[1747576398065,5.8059,172.19,172.15,5.8067]
[1747576398462,60.36,172.22,172.15,5.8067]
[1747576399261,5.8059,172.19,172.15,5.8067]
[1747576400067,5.806,172.18,172.15,5.8067]
[1747576400267,60.34,172.22,172.14,60.44]
[1747576400664,5.8062,172.18,172.14,60.44]
[1747576401367,5.8058,172.19,172.14,60.44]
[1747576401668,60.34,172.22,172.14,60.44]
[1747576403071,5.8054,172.2,172.16,5.8064]
[1747576403872,5.8057,172.19,172.16,5.8064]
[1747576404070,5.8057,172.19,172.15,5.8068]
[1747576405377,5.8054,172.2,172.16,5.8064]
[1747576405571,5.8054,172.2,172.14,60.44]
[1747576406074,5.8054,172.2,172.16,5.8063]
[1747576406378,5.8054,172.2,172.14,60.44]
[1747576406976,5.8051,172.21,172.14,60.44]
[1747576407475,5.8051,172.21,172.18,5.8059]
[1747576407771,60.32,172.22,172.14,60.44]